{"text_format":"3","workbook":"xlsx","n_sheets":1,"sheets":["Sheet1"],"read":"whole","date_system":"1900"}

{"sheet":"Sheet1","index":0,"n_rows":42,"n_cols":6,"rows_kept":42,"merged":[[2,0,3,0],[2,1,3,1],[2,2,3,2],[2,3,3,3],[2,4,3,4],[28,0,29,0],[28,2,29,2],[28,3,29,3],[28,4,29,4]]}
["PRESSURE CLEANING AND WATER SEALING SERVICES - CENTRAL REGIONS"]
[]
[null,"Column A","Column B","Column C","Column D"]
[{"$nulls":5},"Column E"]
[null,"Description of Item","Qty","Unit Cost for Pressure Cleaning","Unit Cost for Water Sealing","Combined Total Cost"]
[{"$nulls":5},"(Add Column C and Column D)"]
[1,"Little Big Econ State Forest (Geneva Field Station)",1,null,null,{"$f":"E7+D7","v":{"v":0,"d":"$0.00"}}]
[2,"Buck Lake Conservation Area, West Entrance",1,null,null,{"$f":"E8+D8","v":{"v":0,"d":"$0.00"}}]
[3,"Buck Lake Conservation Area, “Fish Camp”",1,null,null,{"v":0,"d":"$0.00"}]
[4,"Buck Lake Hunter Check Station East Entrance",1,null,null,{"v":0,"d":"$0.00"}]
[5,"Buck Lake Old Timers Camp, East Entrance",1,null,null,{"v":0,"d":"$0.00"}]
[6,"Palm Bluff (Maytown) ",1,null,null,{"v":0,"d":"$0.00"}]
[7,"Canaveral Marsh Conservation Area",1,null,null,{"v":0,"d":"$0.00"}]
[8,"Lake Jesup Conservation Area Elm St.",1,null,null,{"v":0,"d":"$0.00"}]
[9,"Lake Jesup Conservation Area Marl Bed Flats",1,null,null,{"v":0,"d":"$0.00"}]
[10,"Seminole Ranch Conservation Area, Snake Creek",1,null,null,{"v":0,"d":"$0.00"}]
[11,"Seminole Ranch, River Camp",1,null,null,{"v":0,"d":"$0.00"}]
[12,"Seminole Ranch, Hatbill Rd.",1,null,null,{"v":0,"d":"$0.00"}]
[13,"Seminole Ranch, Wheeler Rd Parking Area",1,null,null,{"v":0,"d":"$0.00"}]
[14,"Seminole Ranch, HWY50 airboat launch",1,null,null,{"v":0,"d":"$0.00"}]
[15,"Hal Scott Conservation Area, Dallas Blvd Parking Area",1,null,null,{"v":0,"d":"$0.00"}]
[16,"Hal Scott, Group Campsite (East of Econ River)",1,null,null,{"v":0,"d":"$0.00"}]
[17,"Hal Scott, Yates Camp (West of Econ River)",1,null,null,{"v":0,"d":"$0.00"}]
[18,"Hal Scott, South of Yates Camp",1,null,null,{"v":0,"d":"$0.00"}]
[19,"Hal Scott, Red Trail ",1,null,null,{"v":0,"d":"$0.00"}]
[20,"Lake Monroe Conservation Area",1,null,null,{"v":0,"d":"$0.00"}]
[21,"Econ Sandhills Conservation Area Main Parking Area",1,null,null,{"v":0,"d":"$0.00"}]
[22,"Wekiva River Buffer, Wilderness Drive Parking Area",1,null,null,{"v":0,"d":"$0.00"}]
[]
[null,"TOTAL OF COLUMN E",{"$nulls":3},{"$f":"SUM(F7:F28)","v":{"v":0,"d":"$0.00"}}]
{"$rows_empty":11}
[null,null,"   "]